[Event "Titled Tuesday Blitz May 24 Late 2022"]
[White "Kopczynski, Michal"]
[Black "Kohler, Aran"]
[WhiteFideId "1124200"]
[BlackFideId "1002856"]
[WhiteElo "2235"]
[BlackElo "2250"]
[Result "1-0"]
[Round "04"]
[TimeControl "180+1"]
[Date "2022.05.25"]
[WhiteClock "0:00:25"]
[BlackClock "0:00:15"]

1. e4 {[%clk 0:03:00]}  e5 {[%clk 0:02:59]} 2. Nf3 {[%clk 0:03:00]}  Nc6 {[%clk 0:02:59]} 3. Bb5 {[%clk 0:03:01]}  Nf6 {[%clk 0:02:59]} 4. O-O {[%clk 0:03:00]}  Nxe4 {[%clk 0:02:59]} 5. Re1 {[%clk 0:03:00]}  Nd6 {[%clk 0:02:56]} 6. Nxe5 {[%clk 0:03:00]}  Nxe5 {[%clk 0:02:53]} 7. Rxe5+ {[%clk 0:03:01]}  Be7 {[%clk 0:02:53]} 8. Ba4 {[%clk 0:03:00]}  O-O {[%clk 0:02:51]} 9. d4 {[%clk 0:03:00]}  Bf6 {[%clk 0:02:49]} 10. Re1 {[%clk 0:03:00]}  Re8 {[%clk 0:02:48]} 11. Rxe8+ {[%clk 0:02:57]}  Nxe8 {[%clk 0:02:49]} 12. c3 {[%clk 0:02:56]}  d5 {[%clk 0:02:47]} 13. Bf4 {[%clk 0:02:55]}  c6 {[%clk 0:02:46]} 14. Bc2 {[%clk 0:02:54]}  g6 {[%clk 0:02:46]} 15. Nd2 {[%clk 0:02:54]}  Ng7 {[%clk 0:02:47]} 16. Nf1 {[%clk 0:02:51]}  Bf5 {[%clk 0:02:47]} 17. Ne3 {[%clk 0:02:47]}  Bxc2 {[%clk 0:02:39]} 18. Qxc2 {[%clk 0:02:48]}  h5 {[%clk 0:02:27]} 19. Re1 {[%clk 0:02:41]}  Qd7 {[%clk 0:02:27]} 20. h3 {[%clk 0:02:36]}  Re8 {[%clk 0:02:26]} 21. Re2 {[%clk 0:02:35]}  Bd8 {[%clk 0:01:47]} 22. Be5 {[%clk 0:02:23]}  f6 {[%clk 0:01:42]} 23. Bf4 {[%clk 0:02:13]}  Kf7 {[%clk 0:01:37]} 24. c4 {[%clk 0:01:58]}  Ne6 {[%clk 0:01:27]} 25. cxd5 {[%clk 0:01:41]}  Nxf4 {[%clk 0:01:26]} 26. Rd2 {[%clk 0:01:37]}  Nxd5 {[%clk 0:01:25]} 27. Nc4 {[%clk 0:01:32]}  Re1+ {[%clk 0:01:19]} 28. Kh2 {[%clk 0:01:32]}  Bc7+ {[%clk 0:01:20]} 29. g3 {[%clk 0:01:33]}  Qf5 {[%clk 0:01:10]} 30. Qb3 {[%clk 0:01:22]}  b6 {[%clk 0:00:42]} 31. Ne3 {[%clk 0:01:15]}  Qe6 {[%clk 0:00:37]} 32. Ng2 {[%clk 0:01:14]}  Re2 {[%clk 0:00:28]} 33. Qc2 {[%clk 0:01:09]}  Rxd2 {[%clk 0:00:27]} 34. Qxd2 {[%clk 0:01:10]}  Kg7 {[%clk 0:00:26]} 35. h4 {[%clk 0:01:08]}  Ne7 {[%clk 0:00:24]} 36. Qc2 {[%clk 0:01:01]}  Qxa2 {[%clk 0:00:22]} 37. Qe4 {[%clk 0:00:51]}  Qf7 {[%clk 0:00:20]} 38. Ne1 {[%clk 0:00:49]}  Nd5 {[%clk 0:00:20]} 39. Nf3 {[%clk 0:00:45]}  Qe7 {[%clk 0:00:20]} 40. Qd3 {[%clk 0:00:45]}  f5 {[%clk 0:00:19]} 41. Ng5 {[%clk 0:00:42]}  Qd6 {[%clk 0:00:19]} 42. Qe2 {[%clk 0:00:39]}  Ne7 {[%clk 0:00:16]} 43. Ne6+ {[%clk 0:00:35]}  Kf6 {[%clk 0:00:17]} 44. Nf4 {[%clk 0:00:30]}  Qxd4 {[%clk 0:00:16]} 45. Qe6+ {[%clk 0:00:29]}  Kg7 {[%clk 0:00:16]} 46. Qxe7+ {[%clk 0:00:29]}  Kg8 {[%clk 0:00:16]} 47. Qxc7 {[%clk 0:00:27]}  Qxf2+ {[%clk 0:00:16]} 48. Ng2 {[%clk 0:00:28]}  Qxb2 {[%clk 0:00:15]} 49. Qxc6 {[%clk 0:00:27]}  Qa2 {[%clk 0:00:16]} 50. Qxg6+ {[%clk 0:00:27]}  Kf8 {[%clk 0:00:16]} 51. Qxf5+ {[%clk 0:00:27]}  Ke7 {[%clk 0:00:17]} 52. Qg5+ {[%clk 0:00:27]}  Kd7 {[%clk 0:00:16]} 53. Qxh5 {[%clk 0:00:27]}  a5 {[%clk 0:00:16]} 54. Qf5+ {[%clk 0:00:28]}  Kc7 {[%clk 0:00:14]} 55. h5 {[%clk 0:00:28]}  a4 {[%clk 0:00:14]} 56. h6 {[%clk 0:00:28]}  a3 {[%clk 0:00:14]} 57. h7 {[%clk 0:00:28]}  Qb2 {[%clk 0:00:14]} 58. Qf7+ {[%clk 0:00:25]}  Kc6 {[%clk 0:00:15]} 59. Qg6+ {[%clk 0:00:25]}  Kb5 {[%clk 0:00:14]} 60. Qh5+ {[%clk 0:00:24]}  Ka6 {[%clk 0:00:13]} 61. h8=Q {[%clk 0:00:24]}  Qxh8 {[%clk 0:00:11]} 62. Qxh8 {[%clk 0:00:25]}  Ka5 {[%clk 0:00:11]} 63. Qa1 {[%clk 0:00:25]}  Ka4 {[%clk 0:00:11]} 64. g4 {[%clk 0:00:26]}  b5 {[%clk 0:00:12]} 65. g5 {[%clk 0:00:27]}  b4 {[%clk 0:00:13]} 66. g6 {[%clk 0:00:27]}  b3 {[%clk 0:00:13]} 67. g7 {[%clk 0:00:27]}  b2 {[%clk 0:00:14]} 68. Qa2 {[%clk 0:00:26]}  Kb4 {[%clk 0:00:15]} 69. g8=Q {[%clk 0:00:26]}  Kc3 {[%clk 0:00:15]} 70. Qxa3+ {[%clk 0:00:25]} 1-0


[Site "https://www.chess.com"]

[Event "Titled Tuesday Blitz May 24 Late 2022"]
[White "Koutlas, Nikolaos"]
[Black "Novikova, Galina"]
[WhiteFideId "25827138"]
[BlackFideId "4157095"]
[WhiteElo "1645"]
[BlackElo "1863"]
[Result "1-0"]
[Round "04"]
[TimeControl "180+1"]
[Date "2022.05.25"]
[WhiteClock "0:01:05"]
[BlackClock "0:00:43"]

1. e3 {[%clk 0:02:59]}  e6 {[%clk 0:02:59]} 2. c4 {[%clk 0:02:54]}  f5 {[%clk 0:02:59]} 3. Nc3 {[%clk 0:02:54]}  Nf6 {[%clk 0:02:59]} 4. b3 {[%clk 0:02:54]}  Be7 {[%clk 0:02:59]} 5. Bb2 {[%clk 0:02:55]}  O-O {[%clk 0:02:59]} 6. Qc2 {[%clk 0:02:52]}  d6 {[%clk 0:02:59]} 7. O-O-O {[%clk 0:02:53]}  e5 {[%clk 0:02:52]} 8. f4 {[%clk 0:02:52]}  Nc6 {[%clk 0:02:49]} 9. Nf3 {[%clk 0:02:45]}  e4 {[%clk 0:02:28]} 10. Ng5 {[%clk 0:02:43]}  Ng4 {[%clk 0:02:22]} 11. d4 {[%clk 0:02:26]}  Nxe3 {[%clk 0:02:13]} 12. Qd2 {[%clk 0:02:24]}  Nxd1 {[%clk 0:02:13]} 13. Nxd1 {[%clk 0:02:24]}  Bf6 {[%clk 0:02:01]} 14. h4 {[%clk 0:02:17]}  a5 {[%clk 0:01:58]} 15. Ne3 {[%clk 0:02:06]}  h6 {[%clk 0:01:56]} 16. g4 {[%clk 0:02:02]}  fxg4 {[%clk 0:01:45]} 17. Nxe4 {[%clk 0:01:59]}  Be7 {[%clk 0:01:38]} 18. Bd3 {[%clk 0:01:52]}  a4 {[%clk 0:01:35]} 19. d5 {[%clk 0:01:43]}  Nb8 {[%clk 0:01:12]} 20. Bb1 {[%clk 0:01:35]}  Rxf4 {[%clk 0:01:02]} 21. Qd3 {[%clk 0:01:19]}  Na6 {[%clk 0:00:52]} 22. Ng5 {[%clk 0:01:10]}  Bxg5 {[%clk 0:00:46]} 23. Qh7+ {[%clk 0:01:06]}  Kf8 {[%clk 0:00:45]} 24. Qxg7+ {[%clk 0:01:05]}  Ke8 {[%clk 0:00:43]} 25. Bg6+ {[%clk 0:01:05]} 1-0


[Site "https://www.chess.com"]

[Event "Titled Tuesday Blitz May 24 Late 2022"]
[White "Krishnan, Varun"]
[Black "Miszler, Levente"]
[WhiteFideId "5054508"]
[BlackFideId "763276"]
[WhiteElo "2536"]
[BlackElo "1966"]
[Result "1-0"]
[Round "04"]
[TimeControl "180+1"]
[Date "2022.05.25"]
[WhiteClock "0:02:10"]
[BlackClock "0:01:34"]

1. d4 {[%clk 0:03:00]}  Nf6 {[%clk 0:02:59]} 2. c4 {[%clk 0:03:00]}  e6 {[%clk 0:02:59]} 3. Nf3 {[%clk 0:03:00]}  b6 {[%clk 0:02:58]} 4. a3 {[%clk 0:03:00]}  Bb7 {[%clk 0:02:58]} 5. Nc3 {[%clk 0:03:00]}  Ne4 {[%clk 0:02:53]} 6. Qc2 {[%clk 0:02:49]}  f5 {[%clk 0:02:50]} 7. e3 {[%clk 0:02:49]}  Be7 {[%clk 0:02:48]} 8. Bd3 {[%clk 0:02:49]}  Nxc3 {[%clk 0:02:43]} 9. bxc3 {[%clk 0:02:48]}  O-O {[%clk 0:02:38]} 10. O-O {[%clk 0:02:48]}  Qe8 {[%clk 0:02:32]} 11. e4 {[%clk 0:02:44]}  Qh5 {[%clk 0:02:25]} 12. Re1 {[%clk 0:02:38]}  f4 {[%clk 0:02:07]} 13. Rb1 {[%clk 0:02:22]}  g5 {[%clk 0:02:04]} 14. Ne5 {[%clk 0:02:19]}  d6 {[%clk 0:01:53]} 15. Be2 {[%clk 0:02:14]}  Qh6 {[%clk 0:01:43]} 16. Ng4 {[%clk 0:02:12]}  Qg6 {[%clk 0:01:37]} 17. Bd3 {[%clk 0:02:12]}  h5 {[%clk 0:01:35]} 18. e5 {[%clk 0:02:12]}  Qh6 {[%clk 0:01:34]} 19. Nxh6+ {[%clk 0:02:10]} 1-0


[Site "https://www.chess.com"]

[Event "Titled Tuesday Blitz May 24 Late 2022"]
[White "Krstulovic, Alex"]
[Black "Lopez Gracia, Fernando"]
[WhiteFideId "760056"]
[BlackFideId "2207184"]
[WhiteElo "2193"]
[BlackElo "2409"]
[Result "0-1"]
[Round "04"]
[TimeControl "180+1"]
[Date "2022.05.25"]
[WhiteClock "0:00:45"]
[BlackClock "0:01:26"]

1. e4 {[%clk 0:02:54]}  e5 {[%clk 0:02:59]} 2. Nf3 {[%clk 0:02:54]}  Nc6 {[%clk 0:03:00]} 3. Bc4 {[%clk 0:02:54]}  Nf6 {[%clk 0:02:59]} 4. d3 {[%clk 0:02:54]}  Bc5 {[%clk 0:03:00]} 5. O-O {[%clk 0:02:54]}  O-O {[%clk 0:03:00]} 6. c3 {[%clk 0:02:51]}  d6 {[%clk 0:03:00]} 7. Re1 {[%clk 0:02:47]}  a5 {[%clk 0:02:57]} 8. Bg5 {[%clk 0:02:43]}  h6 {[%clk 0:02:57]} 9. Bh4 {[%clk 0:02:43]}  g5 {[%clk 0:02:57]} 10. Bg3 {[%clk 0:02:43]}  Be6 {[%clk 0:02:58]} 11. Nbd2 {[%clk 0:02:42]}  Kg7 {[%clk 0:02:44]} 12. Bb3 {[%clk 0:02:22]}  Bxb3 {[%clk 0:02:42]} 13. Nxb3 {[%clk 0:02:19]}  Bb6 {[%clk 0:02:40]} 14. d4 {[%clk 0:02:19]}  Qe7 {[%clk 0:02:36]} 15. Qd2 {[%clk 0:02:10]}  a4 {[%clk 0:02:25]} 16. dxe5 {[%clk 0:02:06]}  dxe5 {[%clk 0:02:24]} 17. Nc1 {[%clk 0:02:05]}  Rfd8 {[%clk 0:02:22]} 18. Qe2 {[%clk 0:02:03]}  Nh5 {[%clk 0:02:17]} 19. Nd3 {[%clk 0:01:41]}  f6 {[%clk 0:02:14]} 20. Rad1 {[%clk 0:01:35]}  Rd7 {[%clk 0:02:12]} 21. Nh4 {[%clk 0:00:49]}  Nxg3 {[%clk 0:01:53]} 22. hxg3 {[%clk 0:00:48]}  gxh4 {[%clk 0:01:52]} 23. Qg4+ {[%clk 0:00:48]}  Kh8 {[%clk 0:01:47]} 24. Nf4 {[%clk 0:00:48]}  exf4 {[%clk 0:01:28]} 25. Rxd7 {[%clk 0:00:45]}  Ne5 {[%clk 0:01:26]} 0-1


[Site "https://www.chess.com"]

[Event "Titled Tuesday Blitz May 24 Late 2022"]
[White "Larino Nieto, David"]
[Black "Bas Mas, Jose Joaquin"]
[WhiteFideId "2256444"]
[BlackFideId "22219064"]
[WhiteElo "2532"]
[BlackElo "2233"]
[Result "1-0"]
[Round "04"]
[TimeControl "180+1"]
[Date "2022.05.25"]
[WhiteClock "0:00:09"]
[BlackClock "0:00:37"]

1. e4 {[%clk 0:03:00]}  c5 {[%clk 0:02:59]} 2. Nc3 {[%clk 0:03:00]}  Nc6 {[%clk 0:02:59]} 3. g3 {[%clk 0:03:00]}  g6 {[%clk 0:02:58]} 4. Bg2 {[%clk 0:03:01]}  Bg7 {[%clk 0:02:59]} 5. d3 {[%clk 0:03:02]}  e6 {[%clk 0:02:59]} 6. Be3 {[%clk 0:03:00]}  d6 {[%clk 0:02:58]} 7. f4 {[%clk 0:02:59]}  Nge7 {[%clk 0:02:58]} 8. Nf3 {[%clk 0:02:59]}  O-O {[%clk 0:02:58]} 9. O-O {[%clk 0:02:59]}  a6 {[%clk 0:02:58]} 10. Bf2 {[%clk 0:02:58]}  b5 {[%clk 0:02:58]} 11. a3 {[%clk 0:02:58]}  Rb8 {[%clk 0:02:58]} 12. Qd2 {[%clk 0:02:51]}  b4 {[%clk 0:02:57]} 13. axb4 {[%clk 0:02:52]}  cxb4 {[%clk 0:02:49]} 14. Nd1 {[%clk 0:02:43]}  Bb7 {[%clk 0:02:47]} 15. g4 {[%clk 0:02:42]}  f5 {[%clk 0:02:42]} 16. Ng5 {[%clk 0:02:41]}  Qd7 {[%clk 0:02:40]} 17. gxf5 {[%clk 0:02:40]}  exf5 {[%clk 0:02:39]} 18. exf5 {[%clk 0:02:39]}  Nxf5 {[%clk 0:02:38]} 19. Bd5+ {[%clk 0:02:30]}  Kh8 {[%clk 0:02:34]} 20. Ne6 {[%clk 0:02:30]}  Rfe8 {[%clk 0:02:27]} 21. Nxg7 {[%clk 0:02:28]}  Kxg7 {[%clk 0:02:28]} 22. c3 {[%clk 0:02:24]}  Nce7 {[%clk 0:02:22]} 23. Be4 {[%clk 0:02:18]}  d5 {[%clk 0:02:20]} 24. Bg2 {[%clk 0:02:14]}  d4 {[%clk 0:02:17]} 25. cxd4 {[%clk 0:02:08]}  Bxg2 {[%clk 0:02:15]} 26. Kxg2 {[%clk 0:02:07]}  Ng8 {[%clk 0:02:00]} 27. Kg1 {[%clk 0:01:58]}  Qc6 {[%clk 0:01:53]} 28. d5 {[%clk 0:01:56]}  Qxd5 {[%clk 0:01:52]} 29. Rxa6 {[%clk 0:01:49]}  Nf6 {[%clk 0:01:49]} 30. Ne3 {[%clk 0:01:32]}  Nxe3 {[%clk 0:01:33]} 31. Bxe3 {[%clk 0:01:33]}  Ng4 {[%clk 0:01:33]} 32. Ra7+ {[%clk 0:01:29]}  Kg8 {[%clk 0:01:28]} 33. Bf2 {[%clk 0:01:21]}  Qf3 {[%clk 0:01:20]} 34. Qc2 {[%clk 0:01:09]}  Qh3 {[%clk 0:01:04]} 35. Qc4+ {[%clk 0:01:03]}  Kh8 {[%clk 0:00:59]} 36. Qd4+ {[%clk 0:00:35]}  Ne5 {[%clk 0:00:55]} 37. fxe5 {[%clk 0:00:32]}  Re6 {[%clk 0:00:54]} 38. Bh4 {[%clk 0:00:27]}  g5 {[%clk 0:00:46]} 39. Bg3 {[%clk 0:00:17]}  h5 {[%clk 0:00:42]} 40. Qe4 {[%clk 0:00:12]}  Rh6 {[%clk 0:00:40]} 41. e6 {[%clk 0:00:11]}  Qg4 {[%clk 0:00:37]} 42. Qe5+ {[%clk 0:00:09]}  Kg8 {[%clk 0:00:37]} 43. Qg7# {[%clk 0:00:09]} 1-0


[Site "https://www.chess.com"]

[Event "Titled Tuesday Blitz May 24 Late 2022"]
[White "Maltsevskaya, Aleksandra"]
[Black "Kaasen, Tor Fredrik"]
[WhiteFideId "24174041"]
[BlackFideId "1516647"]
[WhiteElo "2235"]
[BlackElo "2335"]
[Result "1/2-1/2"]
[Round "04"]
[TimeControl "180+1"]
[Date "2022.05.24"]
[WhiteClock "0:00:07"]
[BlackClock "0:00:14"]

1. Nf3 {[%clk 0:02:39]}  Nf6 {[%clk 0:02:58]} 2. d3 {[%clk 0:02:33]}  d5 {[%clk 0:02:58]} 3. Nbd2 {[%clk 0:02:34]}  c5 {[%clk 0:02:57]} 4. g3 {[%clk 0:02:35]}  Nc6 {[%clk 0:02:58]} 5. Bg2 {[%clk 0:02:35]}  g6 {[%clk 0:02:57]} 6. O-O {[%clk 0:02:36]}  Bg7 {[%clk 0:02:57]} 7. e4 {[%clk 0:02:37]}  O-O {[%clk 0:02:58]} 8. exd5 {[%clk 0:02:38]}  Nxd5 {[%clk 0:02:58]} 9. Re1 {[%clk 0:02:37]}  Re8 {[%clk 0:02:57]} 10. Nc4 {[%clk 0:02:37]}  b6 {[%clk 0:02:54]} 11. a4 {[%clk 0:02:37]}  Bb7 {[%clk 0:02:53]} 12. a5 {[%clk 0:02:37]}  Rb8 {[%clk 0:02:28]} 13. axb6 {[%clk 0:02:37]}  axb6 {[%clk 0:02:29]} 14. c3 {[%clk 0:02:37]}  Qc7 {[%clk 0:02:24]} 15. Qb3 {[%clk 0:02:36]}  e6 {[%clk 0:02:22]} 16. h4 {[%clk 0:02:32]}  h6 {[%clk 0:02:16]} 17. Nfd2 {[%clk 0:02:25]}  Ba8 {[%clk 0:02:03]} 18. Na3 {[%clk 0:02:22]}  Na5 {[%clk 0:01:58]} 19. Qc2 {[%clk 0:02:22]}  Red8 {[%clk 0:01:53]} 20. Nb5 {[%clk 0:02:21]}  Qd7 {[%clk 0:01:51]} 21. Na3 {[%clk 0:02:14]}  Ne7 {[%clk 0:01:51]} 22. Bxa8 {[%clk 0:02:12]}  Rxa8 {[%clk 0:01:52]} 23. Nac4 {[%clk 0:02:11]}  Nxc4 {[%clk 0:01:41]} 24. Rxa8 {[%clk 0:02:11]}  Rxa8 {[%clk 0:01:42]} 25. Nxc4 {[%clk 0:02:11]}  Qc6 {[%clk 0:01:36]} 26. Qb3 {[%clk 0:01:57]}  b5 {[%clk 0:01:29]} 27. Ne5 {[%clk 0:01:57]}  Qb7 {[%clk 0:01:28]} 28. Bf4 {[%clk 0:01:47]}  Nd5 {[%clk 0:01:22]} 29. Bd2 {[%clk 0:01:29]}  Qc7 {[%clk 0:01:22]} 30. Ng4 {[%clk 0:01:22]}  h5 {[%clk 0:01:15]} 31. Ne3 {[%clk 0:01:22]}  Nxe3 {[%clk 0:01:14]} 32. Bxe3 {[%clk 0:01:23]}  Qc6 {[%clk 0:01:13]} 33. Bg5 {[%clk 0:01:17]}  Kh7 {[%clk 0:01:08]} 34. Qd1 {[%clk 0:01:06]}  Qd5 {[%clk 0:01:04]} 35. Qe2 {[%clk 0:01:04]}  Ra2 {[%clk 0:01:02]} 36. Rc1 {[%clk 0:00:26]}  Qb3 {[%clk 0:01:02]} 37. Rc2 {[%clk 0:00:20]}  Bxc3 {[%clk 0:00:30]} 38. Be3 {[%clk 0:00:20]}  Ra1+ {[%clk 0:00:23]} 39. Kg2 {[%clk 0:00:20]}  Qd5+ {[%clk 0:00:22]} 40. f3 {[%clk 0:00:18]}  Bd4 {[%clk 0:00:23]} 41. Bxd4 {[%clk 0:00:17]}  cxd4 {[%clk 0:00:24]} 42. Rc7 {[%clk 0:00:15]}  Kg7 {[%clk 0:00:23]} 43. Qd2 {[%clk 0:00:15]}  Ra2 {[%clk 0:00:20]} 44. Rc2 {[%clk 0:00:08]}  Qb3 {[%clk 0:00:19]} 45. Kh3 {[%clk 0:00:05]}  b4 {[%clk 0:00:19]} 46. Kg2 {[%clk 0:00:05]}  Ra1 {[%clk 0:00:17]} 47. Qf2 {[%clk 0:00:04]}  Qxd3 {[%clk 0:00:16]} 48. Rd2 {[%clk 0:00:04]}  Qe3 {[%clk 0:00:17]} 49. Rxd4 {[%clk 0:00:03]}  Qxf2+ {[%clk 0:00:13]} 50. Kxf2 {[%clk 0:00:04]}  Ra4 {[%clk 0:00:11]} 51. Ke3 {[%clk 0:00:03]}  Kf6 {[%clk 0:00:11]} 52. b3 {[%clk 0:00:04]}  Ra1 {[%clk 0:00:09]} 53. Rxb4 {[%clk 0:00:04]}  Rg1 {[%clk 0:00:10]} 54. Kf2 {[%clk 0:00:05]}  Rc1 {[%clk 0:00:09]} 55. g4 {[%clk 0:00:05]}  hxg4 {[%clk 0:00:09]} 56. fxg4 {[%clk 0:00:06]}  e5 {[%clk 0:00:09]} 57. Rb6+ {[%clk 0:00:06]}  Ke7 {[%clk 0:00:10]} 58. Kf3 {[%clk 0:00:06]}  f5 {[%clk 0:00:10]} 59. gxf5 {[%clk 0:00:06]}  gxf5 {[%clk 0:00:11]} 60. h5 {[%clk 0:00:02]}  Rc3+ {[%clk 0:00:11]} 61. Ke2 {[%clk 0:00:03]}  Kf7 {[%clk 0:00:12]} 62. h6 {[%clk 0:00:03]}  f4 {[%clk 0:00:10]} 63. b4 {[%clk 0:00:03]}  e4 {[%clk 0:00:09]} 64. Rd6 {[%clk 0:00:03]}  Rc2+ {[%clk 0:00:09]} 65. Kd1 {[%clk 0:00:03]}  Rh2 {[%clk 0:00:09]} 66. Rd4 {[%clk 0:00:04]}  Rxh6 {[%clk 0:00:05]} 67. Rxe4 {[%clk 0:00:04]}  Rb6 {[%clk 0:00:04]} 68. Rxf4+ {[%clk 0:00:04]}  Ke6 {[%clk 0:00:05]} 69. Kc2 {[%clk 0:00:04]}  Kd5 {[%clk 0:00:05]} 70. Kb3 {[%clk 0:00:05]}  Kc6 {[%clk 0:00:04]} 71. Kc4 {[%clk 0:00:05]}  Kb7 {[%clk 0:00:05]} 72. b5 {[%clk 0:00:03]}  Re6 {[%clk 0:00:05]} 73. Kd5 {[%clk 0:00:03]}  Rh6 {[%clk 0:00:05]} 74. Kc5 {[%clk 0:00:04]}  Rh5+ {[%clk 0:00:05]} 75. Kb4 {[%clk 0:00:04]}  Rh7 {[%clk 0:00:06]} 76. Ka5 {[%clk 0:00:04]}  Rd7 {[%clk 0:00:07]} 77. Rc4 {[%clk 0:00:05]}  Rd8 {[%clk 0:00:07]} 78. Rc6 {[%clk 0:00:05]}  Kb8 {[%clk 0:00:07]} 79. Kb6 {[%clk 0:00:05]}  Rg8 {[%clk 0:00:08]} 80. Rf6 {[%clk 0:00:05]}  Rh8 {[%clk 0:00:08]} 81. Kc6 {[%clk 0:00:04]}  Rg8 {[%clk 0:00:09]} 82. b6 {[%clk 0:00:05]}  Rh8 {[%clk 0:00:10]} 83. Rf7 {[%clk 0:00:03]}  Rg8 {[%clk 0:00:10]} 84. Rb7+ {[%clk 0:00:02]}  Ka8 {[%clk 0:00:11]} 85. Ra7+ {[%clk 0:00:03]}  Kb8 {[%clk 0:00:11]} 86. Rb7+ {[%clk 0:00:03]}  Ka8 {[%clk 0:00:12]} 87. Rf7 {[%clk 0:00:04]}  Kb8 {[%clk 0:00:12]} 88. Kb5 {[%clk 0:00:05]}  Ka8 {[%clk 0:00:11]} 89. Ka6 {[%clk 0:00:05]}  Kb8 {[%clk 0:00:12]} 90. Rb7+ {[%clk 0:00:05]}  Ka8 {[%clk 0:00:13]} 91. Ra7+ {[%clk 0:00:06]}  Kb8 {[%clk 0:00:13]} 92. Re7 {[%clk 0:00:06]}  Ka8 {[%clk 0:00:14]} 93. Rb7 {[%clk 0:00:06]}  Rf8 {[%clk 0:00:13]} 94. Ra7+ {[%clk 0:00:06]}  Kb8 {[%clk 0:00:13]} 95. Rg7 {[%clk 0:00:07]}  Re8 {[%clk 0:00:13]} 96. Rf7 {[%clk 0:00:06]}  Rd8 {[%clk 0:00:13]} 97. Re7 {[%clk 0:00:07]}  Rf8 {[%clk 0:00:13]} 98. Rh7 {[%clk 0:00:07]}  Rg8 {[%clk 0:00:13]} 99. Rd7 {[%clk 0:00:07]}  Rf8 {[%clk 0:00:14]} 100. Rb7+ {[%clk 0:00:08]}  Ka8 {[%clk 0:00:14]} 101. Ra7+ {[%clk 0:00:08]}  Kb8 {[%clk 0:00:14]} 102. Rg7 {[%clk 0:00:08]}  Re8 {[%clk 0:00:13]} 103. Rd7 {[%clk 0:00:06]}  Rf8 {[%clk 0:00:14]} 104. Re7 {[%clk 0:00:06]}  Rg8 {[%clk 0:00:14]} 105. Rd7 {[%clk 0:00:07]}  Rf8 {[%clk 0:00:14]} 1/2-1/2


[Site "https://www.chess.com"]

[Event "Titled Tuesday Blitz May 24 Late 2022"]
[White "Marin Ramirez, Gerardo"]
[Black "Diaz, Fernando"]
[WhiteFideId "3901068"]
[BlackFideId "3701255"]
[WhiteElo "1920"]
[BlackElo "1934"]
[Result "1-0"]
[Round "04"]
[TimeControl "180+1"]
[Date "2022.05.25"]
[WhiteClock "0:00:20"]
[BlackClock "0:00:46"]

1. d4 {[%clk 0:02:58]}  e5 {[%clk 0:02:59]} 2. dxe5 {[%clk 0:02:56]}  d6 {[%clk 0:02:59]} 3. Nf3 {[%clk 0:02:56]}  Nc6 {[%clk 0:02:58]} 4. Bg5 {[%clk 0:02:54]}  f6 {[%clk 0:02:57]} 5. exf6 {[%clk 0:02:53]}  gxf6 {[%clk 0:02:58]} 6. Bh4 {[%clk 0:02:48]}  Bg4 {[%clk 0:02:59]} 7. Nc3 {[%clk 0:02:41]}  Qd7 {[%clk 0:02:59]} 8. e3 {[%clk 0:02:35]}  O-O-O {[%clk 0:02:57]} 9. Be2 {[%clk 0:02:35]}  Nh6 {[%clk 0:02:53]} 10. Bxf6 {[%clk 0:02:26]}  Be7 {[%clk 0:02:47]} 11. Bxh8 {[%clk 0:02:24]}  Rxh8 {[%clk 0:02:48]} 12. Nd5 {[%clk 0:02:11]}  Bd8 {[%clk 0:02:36]} 13. Qd2 {[%clk 0:01:34]}  Nf5 {[%clk 0:02:29]} 14. O-O-O {[%clk 0:01:33]}  a6 {[%clk 0:02:27]} 15. Kb1 {[%clk 0:01:32]}  Kb8 {[%clk 0:02:26]} 16. h3 {[%clk 0:01:32]}  Bxf3 {[%clk 0:02:23]} 17. Bxf3 {[%clk 0:01:27]}  Ne5 {[%clk 0:02:23]} 18. Be2 {[%clk 0:01:26]}  Rf8 {[%clk 0:02:21]} 19. f4 {[%clk 0:01:24]}  Nc6 {[%clk 0:02:18]} 20. Bg4 {[%clk 0:01:21]}  h5 {[%clk 0:02:16]} 21. Bxf5 {[%clk 0:01:16]}  Qxf5 {[%clk 0:02:17]} 22. Rhe1 {[%clk 0:01:12]}  Bh4 {[%clk 0:02:17]} 23. Re2 {[%clk 0:01:12]}  Qe4 {[%clk 0:02:16]} 24. Qd3 {[%clk 0:01:10]}  Qe6 {[%clk 0:02:13]} 25. Qh7 {[%clk 0:01:07]}  Rf5 {[%clk 0:02:00]} 26. Qxc7+ {[%clk 0:01:05]}  Ka7 {[%clk 0:01:59]} 27. Qb6+ {[%clk 0:01:03]}  Kb8 {[%clk 0:01:58]} 28. Nc7 {[%clk 0:01:01]}  Qc8 {[%clk 0:01:40]} 29. Nxa6+ {[%clk 0:00:59]}  Ka8 {[%clk 0:01:41]} 30. Nc7+ {[%clk 0:00:57]}  Kb8 {[%clk 0:01:41]} 31. Nb5 {[%clk 0:00:57]}  Bd8 {[%clk 0:01:29]} 32. Nxd6 {[%clk 0:00:44]}  Bxb6 {[%clk 0:01:26]} 33. Nxc8 {[%clk 0:00:43]}  Kxc8 {[%clk 0:01:26]} 34. g4 {[%clk 0:00:41]}  hxg4 {[%clk 0:01:26]} 35. hxg4 {[%clk 0:00:42]}  Rb5 {[%clk 0:01:25]} 36. c4 {[%clk 0:00:39]}  Rb4 {[%clk 0:01:22]} 37. b3 {[%clk 0:00:36]}  Na5 {[%clk 0:01:19]} 38. Kc2 {[%clk 0:00:33]}  Bd8 {[%clk 0:01:18]} 39. e4 {[%clk 0:00:32]}  Rb6 {[%clk 0:01:16]} 40. e5 {[%clk 0:00:31]}  Nc6 {[%clk 0:01:17]} 41. f5 {[%clk 0:00:29]}  Ra6 {[%clk 0:01:16]} 42. Kb1 {[%clk 0:00:28]}  Ne7 {[%clk 0:01:08]} 43. f6 {[%clk 0:00:26]}  Ng6 {[%clk 0:01:05]} 44. g5 {[%clk 0:00:24]}  Nf4 {[%clk 0:00:57]} 45. Re4 {[%clk 0:00:21]}  Ng6 {[%clk 0:00:46]} 46. e6 {[%clk 0:00:20]} 1-0


[Site "https://www.chess.com"]